[Event "Early-Titled-Tuesday-Blitz-June-18-2024"]
[Site "Chess.com"]
[Date "2024.06.18"]
[Round "7"]
[White "Ordekalog"]
[Black "Andrei_Skvortsov"]
[Result "0-1"]
[WhiteElo "2621"]
[BlackElo "2776"]
[TimeControl "180+1"]
[EndTime "9:16:21 PDT"]
[Termination "Andrei_Skvortsov won by resignation"]

1. d4 {[%clk 0:03:00.9]} 1... g6 {[%clk 0:02:57.4]} 2. c4 {[%clk 0:02:57.7]}
2... Bg7 {[%clk 0:02:57.8]} 3. Nf3 {[%clk 0:02:57.5]} 3... e6 {[%clk 0:02:58]}
4. Nc3 {[%clk 0:02:57]} 4... Ne7 {[%clk 0:02:58.5]} 5. h4 {[%clk 0:02:55.1]}
5... h6 {[%clk 0:02:57.2]} 6. h5 {[%clk 0:02:54.4]} 6... g5 {[%clk 0:02:57.4]}
7. e4 {[%clk 0:02:45.3]} 7... d5 {[%clk 0:02:57.7]} 8. e5 {[%clk 0:02:37.5]}
8... c5 {[%clk 0:02:55.5]} 9. Nb5 {[%clk 0:02:26.1]} 9... cxd4 {[%clk
0:02:53.7]} 10. Nd6+ {[%clk 0:02:23.9]} 10... Kf8 {[%clk 0:02:54]} 11. cxd5
{[%clk 0:02:01]} 11... Nxd5 {[%clk 0:02:41.2]} 12. Qxd4 {[%clk 0:01:54.1]} 12...
Nc6 {[%clk 0:02:41.7]} 13. Qc5 {[%clk 0:01:53]} 13... Qe7 {[%clk 0:02:38.4]} 14.
Nxg5 {[%clk 0:01:33.9]} 14... hxg5 {[%clk 0:02:24.1]} 15. Bxg5 {[%clk
0:01:34.8]} 15... Qxg5 {[%clk 0:02:08.9]} 16. Nxc8+ {[%clk 0:01:34.3]} 16... Kg8
{[%clk 0:02:08.6]} 17. Nd6 {[%clk 0:01:31.4]} 17... Qxe5+ {[%clk 0:02:08.1]} 18.
Be2 {[%clk 0:01:31.9]} 18... Nd4 {[%clk 0:01:56.8]} 0-1

[Event "Early-Titled-Tuesday-Blitz-June-18-2024"]
[Site "Chess.com"]
[Date "2024.06.18"]
[Round "7"]
[White "Alexchess1984"]
[Black "laskakid"]
[Result "1-0"]
[WhiteElo "2558"]
[BlackElo "2388"]
[TimeControl "180+1"]
[EndTime "9:16:23 PDT"]
[Termination "Alexchess1984 won by resignation"]

1. e4 {[%clk 0:03:00.9]} 1... d6 {[%clk 0:03:00]} 2. Nc3 {[%clk 0:03:00]} 2...
Nf6 {[%clk 0:03:00]} 3. f4 {[%clk 0:02:59.2]} 3... e5 {[%clk 0:03:00]} 4. Nf3
{[%clk 0:02:59.7]} 4... Be7 {[%clk 0:02:59.6]} 5. Bc4 {[%clk 0:03:00]} 5... exf4
{[%clk 0:02:49.9]} 6. d3 {[%clk 0:02:59.7]} 6... O-O {[%clk 0:02:46.3]} 7. Bxf4
{[%clk 0:02:57.2]} 7... Be6 {[%clk 0:02:38.6]} 8. O-O {[%clk 0:02:50]} 8... Bxc4
{[%clk 0:02:36.9]} 9. dxc4 {[%clk 0:02:50.8]} 9... Nbd7 {[%clk 0:02:31.9]} 10.
Nd4 {[%clk 0:02:49.5]} 10... Re8 {[%clk 0:02:24.8]} 11. Nf5 {[%clk 0:02:48.4]}
11... Bf8 {[%clk 0:02:25]} 12. Qf3 {[%clk 0:02:48.6]} 12... Nc5 {[%clk
0:02:23.7]} 13. Rae1 {[%clk 0:02:47.4]} 13... c6 {[%clk 0:02:18.9]} 14. Bg5
{[%clk 0:02:46]} 14... Ne6 {[%clk 0:02:19.2]} 15. Nh6+ {[%clk 0:02:43.5]} 15...
gxh6 {[%clk 0:02:12.4]} 16. Bxf6 {[%clk 0:02:43.6]} 16... Qb6+ {[%clk
0:02:09.6]} 17. Kh1 {[%clk 0:02:42.4]} 17... Bg7 {[%clk 0:02:06.2]} 18. Qg3
{[%clk 0:02:20.4]} 18... Kf8 {[%clk 0:01:58.4]} 19. Qxd6+ {[%clk 0:02:16.1]}
19... Kg8 {[%clk 0:01:58.2]} 20. Qg3 {[%clk 0:02:16.6]} 20... Kf8 {[%clk
0:01:58.3]} 21. e5 {[%clk 0:02:11.7]} 21... Qd4 {[%clk 0:01:45]} 22. Ne4 {[%clk
0:02:08.2]} 22... Qxc4 {[%clk 0:01:38.8]} 23. Nd6 {[%clk 0:02:02.4]} 23... Qxc2
{[%clk 0:01:34.2]} 24. Bxg7+ {[%clk 0:02:01.6]} 1-0

[Event "Early-Titled-Tuesday-Blitz-June-18-2024"]
[Site "Chess.com"]
[Date "2024.06.18"]
[Round "7"]
[White "Patricius007"]
[Black "carokannlover213"]
[Result "0-1"]
[WhiteElo "2548"]
[BlackElo "2697"]
[TimeControl "180+1"]
[EndTime "9:16:28 PDT"]
[Termination "carokannlover213 won by resignation"]

1. e4 {[%clk 0:03:00.9]} 1... e5 {[%clk 0:02:58.7]} 2. Nf3 {[%clk 0:03:01.2]}
2... Nf6 {[%clk 0:02:59.2]} 3. Bc4 {[%clk 0:03:01.4]} 3... Nxe4 {[%clk
0:02:59.1]} 4. d3 {[%clk 0:02:55.3]} 4... Nd6 {[%clk 0:02:52.1]} 5. Nxe5 {[%clk
0:02:54.9]} 5... Nxc4 {[%clk 0:02:50.8]} 6. Nxc4 {[%clk 0:02:55.8]} 6... d5
{[%clk 0:02:50.4]} 7. Qe2+ {[%clk 0:02:53.1]} 7... Be6 {[%clk 0:02:46.7]} 8. Ne5
{[%clk 0:02:51.5]} 8... Bd6 {[%clk 0:02:42.8]} 9. O-O {[%clk 0:02:30.8]} 9...
O-O {[%clk 0:02:40.9]} 10. d4 {[%clk 0:02:30.3]} 10... Re8 {[%clk 0:02:41.1]}
11. Qf3 {[%clk 0:02:28.6]} 11... Nd7 {[%clk 0:02:39.9]} 12. Nxd7 {[%clk
0:02:28.1]} 12... Qxd7 {[%clk 0:02:40]} 13. Bf4 {[%clk 0:02:28.3]} 13... Bb4
{[%clk 0:02:34.5]} 14. c3 {[%clk 0:02:27.1]} 14... Be7 {[%clk 0:02:31.7]} 15.
Qg3 {[%clk 0:02:24.2]} 15... c5 {[%clk 0:02:19.4]} 16. Nd2 {[%clk 0:02:18]}
16... cxd4 {[%clk 0:02:12.9]} 17. cxd4 {[%clk 0:02:18.9]} 17... Qb5 {[%clk
0:02:12.4]} 18. b3 {[%clk 0:02:16.5]} 18... Bf6 {[%clk 0:02:09.8]} 19. Nf3
{[%clk 0:02:16.8]} 19... Qd3 {[%clk 0:02:10.3]} 20. Be5 {[%clk 0:02:15.6]} 20...
Bxe5 {[%clk 0:02:06]} 21. dxe5 {[%clk 0:02:09.3]} 21... Rac8 {[%clk 0:02:02.1]}
22. Rad1 {[%clk 0:02:05.3]} 22... Qc2 {[%clk 0:01:49.5]} 23. Rd2 {[%clk
0:02:05.2]} 23... Qc3 {[%clk 0:01:49.8]} 24. Rfd1 {[%clk 0:02:01.4]} 24... Red8
{[%clk 0:01:47.9]} 25. Nd4 {[%clk 0:02:00.7]} 25... Qxd2 {[%clk 0:01:46.8]} 0-1

[Event "Early-Titled-Tuesday-Blitz-June-18-2024"]
[Site "Chess.com"]
[Date "2024.06.18"]
[Round "7"]
[White "JJDAREK"]
[Black "cthake"]
[Result "1-0"]
[WhiteElo "2328"]
[BlackElo "1832"]
[TimeControl "180+1"]
[EndTime "9:16:30 PDT"]
[Termination "JJDAREK won by resignation"]

1. Nf3 {[%clk 0:03:00.9]} 1... c5 {[%clk 0:02:58.8]} 2. c4 {[%clk 0:03:00]} 2...
Nc6 {[%clk 0:02:58.6]} 3. Nc3 {[%clk 0:02:59.8]} 3... Nf6 {[%clk 0:02:58.4]} 4.
g3 {[%clk 0:02:56.9]} 4... g6 {[%clk 0:02:58.6]} 5. Bg2 {[%clk 0:02:56.3]} 5...
Bg7 {[%clk 0:02:58.9]} 6. d4 {[%clk 0:02:56.4]} 6... cxd4 {[%clk 0:02:50.2]} 7.
Nxd4 {[%clk 0:02:57.3]} 7... O-O {[%clk 0:02:49.5]} 8. O-O {[%clk 0:02:57.1]}
8... e5 {[%clk 0:02:42.9]} 9. Ndb5 {[%clk 0:02:46.2]} 9... a6 {[%clk 0:02:15.8]}
10. Nd6 {[%clk 0:02:44.9]} 10... Ne8 {[%clk 0:02:15.9]} 11. b3 {[%clk
0:02:38.3]} 11... Nxd6 {[%clk 0:02:14]} 12. Qxd6 {[%clk 0:02:39.2]} 12... Qe7
{[%clk 0:02:12.7]} 13. Qxe7 {[%clk 0:02:32.8]} 13... Nxe7 {[%clk 0:02:12.4]} 14.
Ba3 {[%clk 0:02:32.9]} 14... Re8 {[%clk 0:02:09.7]} 15. Bxe7 {[%clk 0:02:28.7]}
15... Rxe7 {[%clk 0:02:09.1]} 16. Nd5 {[%clk 0:02:29.2]} 16... Re6 {[%clk
0:01:46.7]} 17. Nc7 {[%clk 0:02:28.1]} 17... Rb8 {[%clk 0:01:46.4]} 18. Nxe6
{[%clk 0:02:27.2]} 18... dxe6 {[%clk 0:01:43.3]} 19. Rad1 {[%clk 0:02:24.4]}
19... Bf6 {[%clk 0:01:40.1]} 20. Rd2 {[%clk 0:02:20.3]} 20... b5 {[%clk
0:01:40.1]} 21. cxb5 {[%clk 0:02:16.2]} 21... axb5 {[%clk 0:01:36.6]} 22. Rc1
{[%clk 0:02:15.9]} 22... Bb7 {[%clk 0:01:33.5]} 23. Rd7 {[%clk 0:02:09]} 23...
Bxg2 {[%clk 0:01:32.3]} 24. Kxg2 {[%clk 0:02:09.9]} 24... Rd8 {[%clk 0:01:21.7]}
25. Rxd8+ {[%clk 0:02:08.6]} 25... Bxd8 {[%clk 0:01:21.9]} 26. Rc8 {[%clk
0:02:08.9]} 1-0

[Event "Early-Titled-Tuesday-Blitz-June-18-2024"]
[Site "Chess.com"]
[Date "2024.06.18"]
[Round "7"]
[White "carloseduar100"]
[Black "Kotofeyca"]
[Result "0-1"]
[WhiteElo "2265"]
[BlackElo "2492"]
[TimeControl "180+1"]
[EndTime "9:16:34 PDT"]
[Termination "Kotofeyca won by resignation"]

1. d4 {[%clk 0:03:00.9]} 1... d5 {[%clk 0:03:00.2]} 2. c3 {[%clk 0:02:59.9]}
2... c6 {[%clk 0:03:00.8]} 3. Nf3 {[%clk 0:02:59.4]} 3... Bg4 {[%clk 0:03:00.8]}
4. e3 {[%clk 0:02:58.9]} 4... e6 {[%clk 0:03:00.6]} 5. Bd3 {[%clk 0:02:58.9]}
5... f5 {[%clk 0:02:59.8]} 6. Qb3 {[%clk 0:02:56.8]} 6... Qc7 {[%clk 0:02:53.4]}
7. Ne5 {[%clk 0:02:56.5]} 7... Bh5 {[%clk 0:02:53.4]} 8. Nd2 {[%clk 0:02:54.7]}
8... Nf6 {[%clk 0:02:49.8]} 9. f4 {[%clk 0:02:51.2]} 9... Nbd7 {[%clk
0:02:44.4]} 10. Ndf3 {[%clk 0:02:51.7]} 10... Bd6 {[%clk 0:02:35.9]} 11. O-O
{[%clk 0:02:51]} 11... O-O {[%clk 0:02:35.6]} 12. c4 {[%clk 0:02:50.3]} 12...
Ne4 {[%clk 0:02:27]} 13. Nxd7 {[%clk 0:02:43.5]} 13... Qxd7 {[%clk 0:02:26.6]}
14. Ne5 {[%clk 0:02:44]} 14... Qe7 {[%clk 0:02:13.3]} 15. Qc2 {[%clk 0:02:41.3]}
15... g5 {[%clk 0:02:01.6]} 16. Bxe4 {[%clk 0:02:34.6]} 16... fxe4 {[%clk
0:01:58.6]} 17. g3 {[%clk 0:02:17.5]} 17... gxf4 {[%clk 0:01:31.8]} 18. gxf4
{[%clk 0:02:14.6]} 18... Kh8 {[%clk 0:01:28.7]} 19. Kf2 {[%clk 0:02:14.3]} 19...
Qh4+ {[%clk 0:01:23.8]} 20. Kg1 {[%clk 0:02:14.4]} 20... Rg8+ {[%clk 0:01:22.1]}
21. Kh1 {[%clk 0:02:14.7]} 21... Bxe5 {[%clk 0:01:19.6]} 22. dxe5 {[%clk
0:02:09.8]} 22... Bf3+ {[%clk 0:01:15.9]} 23. Rxf3 {[%clk 0:02:09.5]} 23... Qe1+
{[%clk 0:01:13.3]} 0-1

[Event "Early-Titled-Tuesday-Blitz-June-18-2024"]
[Site "Chess.com"]
[Date "2024.06.18"]
[Round "7"]
[White "bazar-wokzal"]
[Black "SargissyanSargis"]
[Result "1-0"]
[WhiteElo "2588"]
[BlackElo "2434"]
[TimeControl "180+1"]
[EndTime "9:16:40 PDT"]
[Termination "bazar-wokzal won by resignation"]

1. e4 {[%clk 0:03:00.9]} 1... e5 {[%clk 0:02:54.9]} 2. Bc4 {[%clk 0:02:59.8]}
2... Nf6 {[%clk 0:02:54.5]} 3. d3 {[%clk 0:02:59.5]} 3... c6 {[%clk 0:02:52]} 4.
Nf3 {[%clk 0:02:59.1]} 4... d5 {[%clk 0:02:52]} 5. Bb3 {[%clk 0:02:54.9]} 5...
dxe4 {[%clk 0:02:49.4]} 6. Ng5 {[%clk 0:02:53.9]} 6... Be6 {[%clk 0:02:33.1]} 7.
Bxe6 {[%clk 0:02:53.1]} 7... fxe6 {[%clk 0:02:33.2]} 8. dxe4 {[%clk 0:02:53.4]}
8... Qxd1+ {[%clk 0:02:27.3]} 9. Kxd1 {[%clk 0:02:53.5]} 9... Na6 {[%clk
0:01:59.4]} 10. f3 {[%clk 0:02:43.4]} 10... Nc7 {[%clk 0:01:48.9]} 11. Be3
{[%clk 0:02:37.9]} 11... h6 {[%clk 0:01:48.8]} 12. Nh3 {[%clk 0:02:37.4]} 12...
O-O-O+ {[%clk 0:01:44.8]} 13. Ke2 {[%clk 0:02:36.8]} 13... b6 {[%clk 0:01:42.2]}
14. Nd2 {[%clk 0:02:36]} 14... Nd7 {[%clk 0:01:18.3]} 15. Nf2 {[%clk 0:02:32.3]}
15... Bc5 {[%clk 0:01:16.8]} 16. Nc4 {[%clk 0:02:26.2]} 16... Bxe3 {[%clk
0:01:12.4]} 17. Kxe3 {[%clk 0:02:24.9]} 17... Nf8 {[%clk 0:00:45.2]} 18. Nxe5
{[%clk 0:02:21.1]} 18... Kb7 {[%clk 0:00:41.1]} 19. Nf7 {[%clk 0:02:19]} 1-0

[Event "Early-Titled-Tuesday-Blitz-June-18-2024"]
[Site "Chess.com"]
[Date "2024.06.18"]
[Round "7"]
[White "yonaltimur"]
[Black "Dewarfd"]
[Result "0-1"]
[WhiteElo "2298"]
[BlackElo "2147"]
[TimeControl "180+1"]
[EndTime "9:16:46 PDT"]
[Termination "Dewarfd won by resignation"]

1. e4 {[%clk 0:02:57]} 1... c5 {[%clk 0:02:59.7]} 2. Nf3 {[%clk 0:02:56.9]} 2...
g6 {[%clk 0:02:59.7]} 3. d4 {[%clk 0:02:56.1]} 3... cxd4 {[%clk 0:03:00.6]} 4.
Nxd4 {[%clk 0:02:56.8]} 4... Nc6 {[%clk 0:03:00.4]} 5. c4 {[%clk 0:02:44.5]}
5... Nf6 {[%clk 0:02:58.9]} 6. Nc3 {[%clk 0:02:41.4]} 6... d6 {[%clk 0:02:58.9]}
7. Be3 {[%clk 0:02:36.8]} 7... Ng4 {[%clk 0:02:56.3]} 8. Bc1 {[%clk 0:02:02.9]}
8... Qb6 {[%clk 0:02:54.2]} 9. Nd5 {[%clk 0:01:34.6]} 9... Qxd4 {[%clk
0:02:44.2]} 10. Nc7+ {[%clk 0:01:31.3]} 10... Kd8 {[%clk 0:02:35.9]} 11. Qxd4
{[%clk 0:01:32.2]} 11... Nxd4 {[%clk 0:02:35.4]} 12. Nxa8 {[%clk 0:01:33.1]}
12... Nc2+ {[%clk 0:02:33.5]} 13. Kd2 {[%clk 0:01:33.9]} 13... Nxa1 {[%clk
0:02:33.3]} 14. f3 {[%clk 0:01:34.6]} 14... Ne5 {[%clk 0:02:22.6]} 15. b3 {[%clk
0:01:34.7]} 15... f5 {[%clk 0:02:13.9]} 16. Bb2 {[%clk 0:01:32.6]} 16... Bh6+
{[%clk 0:02:06.2]} 17. Kd1 {[%clk 0:01:29.7]} 17... fxe4 {[%clk 0:01:47.1]} 18.
fxe4 {[%clk 0:01:22.5]} 18... Bg4+ {[%clk 0:01:40.5]} 19. Be2 {[%clk 0:01:22]}
19... Bxe2+ {[%clk 0:01:37]} 20. Kxe2 {[%clk 0:01:22.9]} 20... Nc2 {[%clk
0:01:35]} 0-1

[Event "Early-Titled-Tuesday-Blitz-June-18-2024"]
[Site "Chess.com"]
[Date "2024.06.18"]
[Round "7"]
[White "sleeping_in_the_fire"]
[Black "Forge13"]
[Result "0-1"]
[WhiteElo "2445"]
[BlackElo "2675"]
[TimeControl "180+1"]
[EndTime "9:16:50 PDT"]
[Termination "Forge13 won by resignation"]

1. e4 {[%clk 0:03:00.9]} 1... e6 {[%clk 0:02:55.5]} 2. d4 {[%clk 0:02:59.7]}
2... d5 {[%clk 0:02:50.8]} 3. Nc3 {[%clk 0:03:00.2]} 3... Nf6 {[%clk 0:02:50.8]}
4. Bg5 {[%clk 0:02:58.7]} 4... dxe4 {[%clk 0:02:50.2]} 5. Nxe4 {[%clk
0:02:59.6]} 5... Be7 {[%clk 0:02:50.7]} 6. Bxf6 {[%clk 0:03:00.1]} 6... gxf6
{[%clk 0:02:50.4]} 7. Nf3 {[%clk 0:03:00.7]} 7... f5 {[%clk 0:02:50.9]} 8. Nc3
{[%clk 0:03:01.3]} 8... a6 {[%clk 0:02:51.6]} 9. a4 {[%clk 0:03:00.3]} 9... c5
{[%clk 0:02:50.6]} 10. d5 {[%clk 0:02:56.8]} 10... Bf6 {[%clk 0:02:50.5]} 11.
Bc4 {[%clk 0:02:55.7]} 11... O-O {[%clk 0:02:39.3]} 12. O-O {[%clk 0:02:54.1]}
12... e5 {[%clk 0:02:39.7]} 13. Re1 {[%clk 0:02:33.3]} 13... e4 {[%clk
0:02:39.2]} 14. Nd2 {[%clk 0:02:32.8]} 14... Nd7 {[%clk 0:02:37.6]} 15. Nf1
{[%clk 0:02:31.5]} 15... Ne5 {[%clk 0:02:37]} 16. Ba2 {[%clk 0:02:32]} 16... Rb8
{[%clk 0:02:28.4]} 17. Qh5 {[%clk 0:02:30.6]} 17... Bg7 {[%clk 0:02:10]} 18. Ng3
{[%clk 0:02:29.2]} 18... Qf6 {[%clk 0:02:10.1]} 19. Nd1 {[%clk 0:02:15.8]} 19...
Qg6 {[%clk 0:02:06]} 20. Qe2 {[%clk 0:01:46.2]} 20... f4 {[%clk 0:01:55.4]} 21.
Nxe4 {[%clk 0:01:43.8]} 21... f3 {[%clk 0:01:55]} 22. Qf1 {[%clk 0:01:40.8]}
22... fxg2 {[%clk 0:01:51.8]} 0-1

[Event "Early-Titled-Tuesday-Blitz-June-18-2024"]
[Site "Chess.com"]
[Date "2024.06.18"]
[Round "7"]
[White "zverr1"]
[Black "Austen48"]
[Result "1-0"]
[WhiteElo "2545"]
[BlackElo "2306"]
[TimeControl "180+1"]
[EndTime "9:16:52 PDT"]
[Termination "zverr1 won by checkmate"]

1. d4 {[%clk 0:03:00.9]} 1... Nf6 {[%clk 0:02:58.7]} 2. c4 {[%clk 0:03:01.5]}
2... e6 {[%clk 0:02:58.8]} 3. Nc3 {[%clk 0:03:00.6]} 3... Bb4 {[%clk 0:02:57.9]}
4. e3 {[%clk 0:03:01.1]} 4... O-O {[%clk 0:02:56.6]} 5. Ne2 {[%clk 0:03:01.6]}
5... d5 {[%clk 0:02:53]} 6. a3 {[%clk 0:03:02.1]} 6... Be7 {[%clk 0:02:46.9]} 7.
c5 {[%clk 0:03:01.3]} 7... b6 {[%clk 0:02:46.2]} 8. b4 {[%clk 0:03:01.8]} 8...
a5 {[%clk 0:02:45.8]} 9. Bd2 {[%clk 0:02:59.3]} 9... axb4 {[%clk 0:02:45.3]} 10.
axb4 {[%clk 0:03:00.2]} 10... Rxa1 {[%clk 0:02:44.6]} 11. Qxa1 {[%clk
0:03:01.1]} 11... Nc6 {[%clk 0:02:42.4]} 12. Qb2 {[%clk 0:02:54.3]} 12... Ne4
{[%clk 0:02:37.6]} 13. Nxe4 {[%clk 0:02:50.9]} 13... dxe4 {[%clk 0:02:36.7]} 14.
b5 {[%clk 0:02:50.4]} 14... Na7 {[%clk 0:02:08.4]} 15. c6 {[%clk 0:02:49.2]}
15... e5 {[%clk 0:02:09]} 16. dxe5 {[%clk 0:02:45]} 16... Be6 {[%clk 0:01:55.1]}
17. Nd4 {[%clk 0:02:44.5]} 17... Qd5 {[%clk 0:01:48.9]} 18. Be2 {[%clk
0:02:37.7]} 18... Qxe5 {[%clk 0:01:43.5]} 19. O-O {[%clk 0:02:32.3]} 19... Qg5
{[%clk 0:01:39.4]} 20. Ra1 {[%clk 0:02:18.6]} 20... Nc8 {[%clk 0:01:36.7]} 21.
Nxe6 {[%clk 0:02:12.9]} 21... fxe6 {[%clk 0:01:36]} 22. Bc4 {[%clk 0:02:10.6]}
22... Nd6 {[%clk 0:01:27.6]} 23. Bxe6+ {[%clk 0:02:09.6]} 23... Kh8 {[%clk
0:01:27.5]} 24. Bc3 {[%clk 0:02:06.6]} 24... Nxb5 {[%clk 0:01:17.8]} 25. h4
{[%clk 0:02:03.7]} 25... Qxh4 {[%clk 0:01:05.5]} 26. Bxg7# {[%clk 0:02:02.1]}
1-0

[Event "Early-Titled-Tuesday-Blitz-June-18-2024"]
[Site "Chess.com"]
[Date "2024.06.18"]
[Round "7"]
[White "IMRosen"]
[Black "Zavgorodniy_Sergiy"]
[Result "1-0"]
[WhiteElo "2769"]
[BlackElo "2605"]
[TimeControl "180+1"]
[EndTime "9:17:01 PDT"]
[Termination "IMRosen won by resignation"]

1. e4 {[%clk 0:03:00.9]} 1... e5 {[%clk 0:02:59.1]} 2. Nf3 {[%clk 0:03:00.8]}
2... d6 {[%clk 0:02:58.7]} 3. d4 {[%clk 0:03:00.3]} 3... exd4 {[%clk 0:02:59]}
4. Nxd4 {[%clk 0:03:01.2]} 4... Nf6 {[%clk 0:02:59.1]} 5. Nc3 {[%clk 0:03:01.7]}
5... Be7 {[%clk 0:02:59.5]} 6. Bf4 {[%clk 0:03:01.8]} 6... O-O {[%clk
0:02:58.2]} 7. Qd2 {[%clk 0:03:02.3]} 7... Nc6 {[%clk 0:02:58.7]} 8. O-O-O
{[%clk 0:02:58.2]} 8... Nxd4 {[%clk 0:02:58]} 9. Qxd4 {[%clk 0:02:58.9]} 9...
Be6 {[%clk 0:02:57.1]} 10. f3 {[%clk 0:02:58.2]} 10... a5 {[%clk 0:02:53.7]} 11.
Kb1 {[%clk 0:02:49.5]} 11... a4 {[%clk 0:02:50.3]} 12. g4 {[%clk 0:02:42.9]}
12... a3 {[%clk 0:02:48.4]} 13. b3 {[%clk 0:02:43.3]} 13... Nd7 {[%clk
0:02:48.6]} 14. Nd5 {[%clk 0:02:34.9]} 14... Bxd5 {[%clk 0:02:41.4]} 15. Qxd5
{[%clk 0:02:28.4]} 15... c6 {[%clk 0:02:34.3]} 16. Qd2 {[%clk 0:02:27.8]} 16...
Ne5 {[%clk 0:02:26.5]} 17. Be2 {[%clk 0:02:20.7]} 17... b5 {[%clk 0:02:22.6]}
18. h4 {[%clk 0:02:10.8]} 18... Qb6 {[%clk 0:02:21.1]} 19. h5 {[%clk 0:02:01.6]}
19... Rfc8 {[%clk 0:01:20.5]} 20. Be3 {[%clk 0:01:52.5]} 20... c5 {[%clk
0:01:19.9]} 21. f4 {[%clk 0:01:52.8]} 21... Nc4 {[%clk 0:01:18.7]} 22. Bxc4
{[%clk 0:01:38.2]} 22... bxc4 {[%clk 0:01:18]} 23. g5 {[%clk 0:01:34.9]} 23...
cxb3 {[%clk 0:01:16.3]} 24. cxb3 {[%clk 0:01:35.8]} 24... c4 {[%clk 0:01:16.5]}
25. Bxb6 {[%clk 0:01:35.3]} 1-0

[Event "Early-Titled-Tuesday-Blitz-June-18-2024"]
[Site "Chess.com"]
[Date "2024.06.18"]
[Round "7"]
[White "elis06"]
[Black "DishonorOnYourCow"]
[Result "0-1"]
[WhiteElo "2362"]
[BlackElo "2525"]
[TimeControl "180+1"]
[EndTime "9:17:03 PDT"]
[Termination "DishonorOnYourCow won by checkmate"]

1. d4 {[%clk 0:02:56.4]} 1... Nf6 {[%clk 0:02:59.5]} 2. c4 {[%clk 0:02:55.1]}
2... g6 {[%clk 0:03:00]} 3. Nc3 {[%clk 0:02:52.9]} 3... d5 {[%clk 0:03:00.5]} 4.
Nf3 {[%clk 0:02:45.4]} 4... Bg7 {[%clk 0:02:57.8]} 5. Bf4 {[%clk 0:02:42.9]}
5... O-O {[%clk 0:02:56.1]} 6. e3 {[%clk 0:02:42.2]} 6... c5 {[%clk 0:02:55.9]}
7. dxc5 {[%clk 0:02:24.2]} 7... Qa5 {[%clk 0:02:54.2]} 8. Be2 {[%clk 0:02:11.2]}
8... dxc4 {[%clk 0:02:46.8]} 9. Bxc4 {[%clk 0:02:06.2]} 9... Ne4 {[%clk
0:02:46.8]} 10. O-O {[%clk 0:01:57.6]} 10... Nxc3 {[%clk 0:02:46.4]} 11. bxc3
{[%clk 0:01:57.5]} 11... Qxc5 {[%clk 0:02:45.9]} 12. Qe2 {[%clk 0:01:52.2]}
12... Bg4 {[%clk 0:02:41.4]} 13. Bb3 {[%clk 0:01:47.4]} 13... e5 {[%clk
0:02:39.3]} 14. Bg3 {[%clk 0:01:33.6]} 14... e4 {[%clk 0:02:39.2]} 15. h3 {[%clk
0:01:30.9]} 15... exf3 {[%clk 0:02:39.2]} 16. gxf3 {[%clk 0:01:30]} 16... Bxh3
{[%clk 0:02:39.1]} 17. Rfd1 {[%clk 0:01:29.9]} 17... Nc6 {[%clk 0:02:36.7]} 18.
Bd6 {[%clk 0:01:26.6]} 18... Qg5+ {[%clk 0:02:36.1]} 19. Bg3 {[%clk 0:01:26.4]}
19... Bxc3 {[%clk 0:02:31.9]} 20. Rac1 {[%clk 0:01:24.7]} 20... Bg7 {[%clk
0:02:31.4]} 21. f4 {[%clk 0:01:23.6]} 21... Qg4 {[%clk 0:02:28.7]} 22. Qc4
{[%clk 0:01:19.9]} 22... Qf3 {[%clk 0:02:23.6]} 23. Qd5 {[%clk 0:01:18.3]} 23...
Qxd5 {[%clk 0:02:21.9]} 24. Bxd5 {[%clk 0:01:17.8]} 24... Rfd8 {[%clk
0:02:20.5]} 25. Bxc6 {[%clk 0:01:16.6]} 25... Rxd1+ {[%clk 0:02:19]} 26. Rxd1
{[%clk 0:01:16.9]} 26... bxc6 {[%clk 0:02:19.6]} 27. Rc1 {[%clk 0:01:17.1]}
27... Rc8 {[%clk 0:02:18.5]} 28. Rc5 {[%clk 0:01:15.7]} 28... Bf8 {[%clk
0:02:17.9]} 29. Ra5 {[%clk 0:01:15.6]} 29... c5 {[%clk 0:02:18.2]} 30. Rxa7
{[%clk 0:01:15.2]} 30... c4 {[%clk 0:02:18.7]} 31. Kh2 {[%clk 0:01:14.9]} 31...
c3 {[%clk 0:02:18]} 32. Kxh3 {[%clk 0:01:15.1]} 32... c2 {[%clk 0:02:18.3]} 33.
Kh2 {[%clk 0:01:15.6]} 33... c1=Q {[%clk 0:02:18.5]} 34. Rb7 {[%clk 0:01:15.8]}
34... Qc6 {[%clk 0:02:16.6]} 35. Rb2 {[%clk 0:01:14.9]} 35... Qf3 {[%clk
0:02:16.2]} 36. Rb1 {[%clk 0:01:14.6]} 36... Rc2 {[%clk 0:02:15.3]} 37. Rf1
{[%clk 0:01:13.8]} 37... Rxa2 {[%clk 0:02:15.1]} 38. Kg1 {[%clk 0:01:13.7]}
38... h5 {[%clk 0:02:15.1]} 39. Bh2 {[%clk 0:01:13.3]} 39... Bc5 {[%clk
0:02:14.7]} 40. Bg3 {[%clk 0:01:12.3]} 40... Bxe3 {[%clk 0:02:14.9]} 41. fxe3
{[%clk 0:01:12.5]} 41... Qg2# {[%clk 0:02:14.6]} 0-1

[Event "Early-Titled-Tuesday-Blitz-June-18-2024"]
[Site "Chess.com"]
[Date "2024.06.18"]
[Round "7"]
[White "jamengrand"]
[Black "NovakRatko"]
[Result "0-1"]
[WhiteElo "2293"]
[BlackElo "2429"]
[TimeControl "180+1"]
[EndTime "9:17:14 PDT"]
[Termination "NovakRatko won by checkmate"]

1. e4 {[%clk 0:03:00.9]} 1... d5 {[%clk 0:02:59]} 2. exd5 {[%clk 0:03:00.8]}
2... c6 {[%clk 0:02:59.3]} 3. dxc6 {[%clk 0:03:00.5]} 3... Nxc6 {[%clk
0:03:00.2]} 4. Nc3 {[%clk 0:03:00.7]} 4... e5 {[%clk 0:02:58.3]} 5. Bb5 {[%clk
0:03:00.7]} 5... Bd6 {[%clk 0:02:54.1]} 6. Nf3 {[%clk 0:03:00.6]} 6... Ne7
{[%clk 0:02:53.2]} 7. d4 {[%clk 0:03:00.4]} 7... exd4 {[%clk 0:02:50.5]} 8. Nxd4
{[%clk 0:02:56.7]} 8... O-O {[%clk 0:02:49.5]} 9. Nxc6 {[%clk 0:02:55.8]} 9...
Nxc6 {[%clk 0:02:48.7]} 10. Bxc6 {[%clk 0:02:54.9]} 10... bxc6 {[%clk
0:02:49.6]} 11. Qh5 {[%clk 0:02:52.9]} 11... Re8+ {[%clk 0:02:45.4]} 12. Be3
{[%clk 0:02:52.7]} 12... Bf4 {[%clk 0:02:39.1]} 13. O-O {[%clk 0:02:49]} 13...
Bxe3 {[%clk 0:02:39.1]} 14. fxe3 {[%clk 0:02:48.9]} 14... Be6 {[%clk 0:02:29.1]}
15. Ne4 {[%clk 0:02:48.2]} 15... Qb6 {[%clk 0:02:25.9]} 16. Rf3 {[%clk
0:02:43.7]} 16... Bd5 {[%clk 0:02:20.7]} 17. Nf6+ {[%clk 0:02:38.8]} 17... gxf6
{[%clk 0:02:16.9]} 18. Rg3+ {[%clk 0:02:32.5]} 18... Kf8 {[%clk 0:02:15.4]} 19.
Rf1 {[%clk 0:02:21.1]} 19... Qxb2 {[%clk 0:02:14.1]} 20. Qh6+ {[%clk 0:01:53]}
20... Ke7 {[%clk 0:02:13.4]} 21. e4 {[%clk 0:01:51.1]} 21... Bxe4 {[%clk
0:02:07.4]} 22. c3 {[%clk 0:01:46.1]} 22... Kd7 {[%clk 0:01:40.3]} 23. Qxf6
{[%clk 0:01:33.4]} 23... Bd5 {[%clk 0:01:29.6]} 24. Rd3 {[%clk 0:01:17.3]} 24...
Qxg2# {[%clk 0:01:21.6]} 0-1